Cogmind - Beta 16.1 @@@ ROGUE MODE // 2026.04.20 @ 15:57:35 Player: 57R4N63R Result: Self-destructed Performance ------------- Evolutions (1) 500 Regions Visited (3) 600 Robots Destroyed (6) 30 Value Destroyed (45) 45 Prototype IDs (0) 0 Alien Tech Used (0) 0 Bonus (0) 0 TOTAL SCORE: 1175 Bonus ------- None Cogmind --------- Core Integrity 96/400 Matter 300/300 Energy 24/100 System Corruption 1% Temperature Hot (264) Movement Core (50) Location -9/Mines Parts ------- > --- POWER (1) -------- (None) > --- PROPULSION (3) --- (None) > --- UTILITY (3) ------ (None) > --- WEAPON (2) ------- (None) > --- INVENTORY (5) ---- Light Ion Engine Hover Unit Medium Laser Peak State ------------ > --- POWER ------------ Light Ion Engine > --- PROPULSION ------- Aluminum Leg Aluminum Leg > --- UTILITY ---------- Improved Terrain Scanner Seismic Detector > --- WEAPON ----------- Medium Laser Medium Laser > --- INVENTORY -------- Light Ion Engine Light Ion Engine Small Storage Unit Light Assault Rifle [Rating: 9] Favorites ----------- Power Light Ion Engine Engine Light Ion Engine Propulsion Hover Unit Leg Aluminum Leg Hover Unit Hover Unit Utility Seismic Detector Device Seismic Detector Storage Small Storage Unit Protection Propulsion Shielding Weapon Medium Laser Energy Gun Medium Laser Launcher Grenade Launcher Build | -11 -10 -9 -9 ------- Run | Yrd Mat Mat Min Slots Evolved 2 | . . 2 . Power . | . . . . Propulsion 1 | . . 1 . Utility 1 | . . 1 . Weapon . | . . . . Parts Attached 16 | 8 4 2 2 Power 1 | 1 . . . Engine 1 | 1 . . . Core . | . . . . Reactor . | . . . . Propulsion 5 | 2 2 1 . Treads . | . . . . Leg 2 | 2 . . . Wheel . | . . . . Hover 3 | . 2 1 . Flight . | . . . . Utility 6 | 3 2 1 . Device 2 | 2 . . . Storage 2 | 1 1 . . Processor . | . . . . Hackware . | . . . . Protection 2 | . 1 1 . Artifact . | . . . . Weapon 4 | 2 . . 2 Energy Gun 3 | 2 . . 1 Energy Cannon . | . . . . Ballistic Gun . | . . . . Ballistic Cannon . | . . . . Launcher 1 | . . . 1 Special Weapon . | . . . . Impact Weapon . | . . . . Slashing Weapon . | . . . . Piercing Weapon . | . . . . Special Melee Weapon . | . . . . Unidentified Prototypes . | . . . . Parts Lost 10 | . . . 10 Power 1 | . . . 1 Propulsion 3 | . . . 3 Utility 3 | . . . 3 Weapon 3 | . . . 3 Highest Loss Streak 10 | . . . 10 To Critical Strikes . | . . . . Average Backups 4 | 3 5 3 3 Power 1 | 1 1 1 1 Propulsion . | . 1 1 1 Utility . | . 1 . . Weapon 1 | . 1 1 1 Tool/Special . | . . . . Unused Backups 5 | . 3 . 2 Power 2 | . 1 . 1 Propulsion 1 | . . . 1 Utility 1 | . 1 . . Weapon 1 | . 1 . . Tool/Special . | . . . . Average Slot Usage (%) 97 | . 100 98 87 Engine 12 | . 14 11 9 Leg 3 | . 5 . . Hover 25 | . 22 32 28 Device 13 | . 14 11 11 Storage 3 | . 5 . . Protection 12 | . 7 22 17 Energy Gun 25 | . 28 22 18 Peak Build Rating 9 | 9 9 9 9 Average Rating 7 | 7 7 8 7 On Entrance 6 | . 9 7 9 Avg Prop Armor Cover (%) . | . . . . Naked Turns . | . . . . Heaviest Build 13 | 13 13 10 10 Greatest Support 20 | 20 20 18 18 Greatest Overweight (x) 2 | . 2 . . Average Overweight (x) . | . . . . Largest Inventory Capacity 25 | 8 25 5 5 Average Capacity 6 | 6 6 5 5 Most Carried 8 | 5 8 4 4 Average Carried 4 | 3 5 3 3 Final Capacity 5 | 5 5 5 5 Final Carried 5 | 5 5 4 3 Class Distribution -------------------- 100% | Mutant Dominant Class ---------------- Mutant | -10/Materials Mutant | -9/Materials Mutant | -9/Mines Resources | -11 -10 -9 -9 ----------- Run | Yrd Mat Mat Min Matter Collected 340 | 280 60 . . Remotely . | . . . . Salvage Created 224 | 162 . . 62 Parts 11 | 11 . . . Haulers Intercepted . | . . . . Recyclers Shooed . | . . . . Parts Field Recycled . | . . . . Retrieved Matter . | . . . . Parts Self-Destructed . | . . . . Prevented . | . . . . Parts Restored . | . . . . Kills | -11 -10 -9 -9 ------- Run | Yrd Mat Mat Min Combat Hostiles Destroyed 4 | . . . 4 Guns 3 | . . . 3 AOE 1 | . . . 1 Classes Destroyed 4 | 2 . . 2 Worker 1 | . . . 1 Tunneler 4 | 4 . . . Recycler 1 | 1 . . . Assembled 4 | . . . 4 Best Kill Streak 5 | 3 . . 5 Combat Bots Only 4 | . . . 4 Max Kills in Single Turn 2 | 1 . . 2 Gunslinging . | . . . . Exploded 1 | . . . 1 Melee . | . . . . Uniques/NPCs Destroyed . | . . . . Combat | -11 -10 -9 -9 -------- Run | Yrd Mat Mat Min Hostile Shots Fired 51 | . 2 . 49 Missed 14 | . 2 . 12 Hits 37 | . . . 37 Melee 16 | . . . 16 Projectile 21 | . . . 21 Part Disruptions 1 | . . . 1 Actively Blocked 1 | . . . 1 Damage Taken 775 | . . . 775 Core 304 | . . . 304 Absorbed by Shields . | . . . . Redirected to Shielding 74 | . . . 74 Core Remaining (%) 100 | 100 100 . . Volleys Fired 19 | 8 . 2 9 Largest 2 | 2 . 2 2 Hottest 100 | 100 . 100 100 Shots Fired 36 | 16 . 4 16 Gun 35 | 16 . 4 15 Cannon . | . . . . Launcher 1 | . . . 1 Special . | . . . . Kinetic . | . . . . Thermal 32 | 16 . 4 12 Explosive 1 | . . . 1 Electromagnetic 3 | . . . 3 Robot Hit Streak 7 | 6 . 7 2 Robot Miss Streak 5 | 1 . 3 5 Penetration Max . | . . . . Secondary Targets . | . . . . Shots Hit Robots 18 | 12 . 1 5 Core Hits 17 | 6 . . 11 Critical Kills . | . . . . Critical Parts Destroyed . | . . . . Critical Strikes 1 | 1 . . . Burn 1 | 1 . . . Melee Attacks . | . . . . Impact . | . . . . Slashing . | . . . . Piercing . | . . . . Sneak Attacks . | . . . . Combat Hostiles . | . . . . Follow-up Attacks . | . . . . Damage Inflicted 399 | 152 . 13 234 Guns 293 | 152 . 13 128 Cannons . | . . . . Explosions 106 | . . . 106 Melee . | . . . . Ramming . | . . . . Kinetic . | . . . . Thermal 255 | 152 . 13 90 Explosive 106 | . . . 106 Electromagnetic 38 | . . . 38 Impact . | . . . . Slashing . | . . . . Piercing . | . . . . Highest Corruption 1 | . . . 1 Average Corruption 1 | . . . 1 Corruption Purged . | . . . . Corruption Blocked . | . . . . Overload Shots . | . . . . Overflow Damage . | . . . . Projectiles . | . . . . Explosions . | . . . . Melee . | . . . . Knockbacks . | . . . . Impact . | . . . . Kinetic . | . . . . Secondary . | . . . . Self-Inflicted Damage . | . . . . Shots . | . . . . Rammed . | . . . . Targets Rammed . | . . . . Kicked . | . . . . Crushed . | . . . . Highest Temperature 244 | 117 . 81 244 Average Temperature 65 | 43 . 42 104 Received Heat Transfer 186 | . . . 186 Effects 1 | . . . 1 Interference 1 | . . . 1 Siege Activations . | . . . . Martial Activations . | . . . . Shielding Activations . | . . . . Robots Disrupted . | . . . . Combat Hostiles . | . . . . Robots Corrupted . | . . . . Combat Hostiles . | . . . . Parts Fried . | . . . . Impact Corruptions . | . . . . Robots Melted . | . . . . Combat Hostiles . | . . . . Parts Melted 1 | 1 . . . Heat Transferred 814 | 518 . 37 259 Parts Sabotaged . | . . . . Parts Stolen . | . . . . Parts Stripped . | . . . . Power Chain Reactions . | . . . . Alert | -11 -10 -9 -9 ------- Run | Yrd Mat Mat Min Maximum Alert Level . | . . . . Low Security (%) 100 | 100 100 100 100 Level 1 . | . . . . Level 2 . | . . . . Level 3 . | . . . . Level 4 . | . . . . Level 5 . | . . . . High Security . | . . . . Max Security . | . . . . Peak Influence 26 | 15 15 15 26 Initial 1 | . . . 1 Average 1 | 2 . 2 5 Influence Increases 111 | 25 15 30 41 Destroy 0b10 Robot/NC 30 | 25 . . 5 Disable Machine 15 | . . . 15 Destroy Structure 6 | . . . 6 Partial Spotted 15 | . . 15 . Lose Combat Pursuer 45 | . 15 15 15 Influence Decreases 111 | 25 15 25 46 Entered New Map 4 | . . . 4 Time Decay 71 | 25 15 25 6 Lost Part 36 | . . . 36 Squads Dispatched 2 | . 2 . . Investigation . | . . . . Extermination . | . . . . Reinforcement 2 | . 2 . . Assault . | . . . . Garrison . | . . . . Intercept . | . . . . Searches Triggered . | . . . . Construction Impeded . | . . . . Haulers Reinforced . | . . . . Active Scanning Responses . | . . . . Cargo Convoy Interrupts . | . . . . Stealth | -11 -10 -9 -9 --------- Run | Yrd Mat Mat Min Distress Signals 2 | . . 2 . Communications Jammed . | . . . . Distress Signals . | . . . . Times Spotted 18 | . 4 3 11 Peak Tracking Total 11 | . 2 2 11 Tactical Retreats 4 | . 1 1 2 Traps | -11 -10 -9 -9 ------- Run | Yrd Mat Mat Min Traps Triggered . | . . . . Indirectly . | . . . . Trap Hack Attempts . | . . . . Triggered . | . . . . Disarmed . | . . . . Reprogrammed . | . . . . Reused . | . . . . Traps Extracted . | . . . . Installed . | . . . . Triggered . | . . . . Machines | -11 -10 -9 -9 ---------- Run | Yrd Mat Mat Min Machines Disabled 1 | . . . 1 Max in Single Turn 1 | . . . 1 Machines Repaired . | . . . . Machines Dismantled . | . . . . Machines Sabotaged . | . . . . Overloaded Fab Kills . | . . . . Hacking | -11 -10 -9 -9 --------- Run | Yrd Mat Mat Min Machines Accessed 3 | . 1 2 . Terminals 2 | . . 2 . Fabricators . | . . . . Repair Stations . | . . . . Recycling Units 1 | . 1 . . Scanalyzers . | . . . . Garrison Access . | . . . . Total Hacks 4 | . 1 3 . Successful 4 | . 1 3 . Failed . | . . . . Catastrophic . | . . . . Database Lockouts . | . . . . Manual . | . . . . Terminals 3 | . . 3 . Fabricators . | . . . . Repair Stations . | . . . . Recycling Units 1 | . 1 . . Scanalyzers . | . . . . Garrison Access . | . . . . Terminal Hacks 3 | . . 3 . Record 2 | . . 2 . Zone Layout 1 | . . 1 . Fabricator Hacks . | . . . . Repair Station Hacks . | . . . . Recycling Unit Hacks 1 | . 1 . . Recycle Component 1 | . 1 . . Scanalyzer . | . . . . Garrison Access Hacks . | . . . . Unauthorized Hacks . | . . . . Terminals . | . . . . Fabricators . | . . . . Repair Stations . | . . . . Recycling Units . | . . . . Scanalyzers . | . . . . Garrison Access . | . . . . Data Cores Recovered . | . . . . Used . | . . . . Hacking Detections 1 | . . 1 . Full Trace Events . | . . . . Feedback Events . | . . . . Feedback Blocked . | . . . . Robot Schematics Acquired . | . . . . Robots Built . | . . . . Authchips . | . . . . Time . | . . . . Total Robot Build Rating . | . . . . Part Schematics Acquired . | . . . . Parts Built . | . . . . Authchips . | . . . . Time . | . . . . Total Part Build Rating . | . . . . Part Studies Acquired . | . . . . Parts Repaired . | . . . . Time . | . . . . Parts Recycled 1 | . 1 . . Recycled Matter . | . . . . Retrieved Matter . | . . . . Retrieved Components . | . . . . Parts Scanalyzed . | . . . . Part Schematics Acquired . | . . . . Parts Damaged . | . . . . Bothacking | -11 -10 -9 -9 ------------ Run | Yrd Mat Mat Min Used RIF Installer . | . . . . Robots Hacked . | . . . . Non-combat . | . . . . Combat . | . . . . Robot Hacks Applied . | . . . . Relay Couplers Released . | . . . . Fabnet Peak Effective % . | . . . . Robots Rewired . | . . . . Allies Hacked . | . . . . Hacks Repelled . | . . . . Allies | -11 -10 -9 -9 -------- Run | Yrd Mat Mat Min Total Allies . | . . . . Largest Group . | . . . . Highest-Rated Group . | . . . . Highest-Rated Ally . | . . . . Total Orders . | . . . . Ally Attacks . | . . . . Total Damage . | . . . . Kills . | . . . . Allies Corrupted . | . . . . Allies Melted . | . . . . Intel | -11 -10 -9 -9 ------- Run | Yrd Mat Mat Min Active Infowar (turns) 605 | 136 317 99 53 Terrain 113 | 104 9 . . Seismic 605 | 136 317 99 53 Robot Analysis Total . | . . . . Derelict Logs Recovered 1 | . . . 1 Drone Launches . | . . . . Drone Recoveries . | . . . . Exploration | -11 -10 -9 -9 ------------- Run | Yrd Mat Mat Min Turns Passed 693 | 220 317 99 57 Spaces Moved 620 | 160 301 114 45 Core 22 | 22 . . . Treads . | . . . . Legs 175 | 138 37 . . Wheels . | . . . . Hover 423 | . 264 114 45 Flight . | . . . . Fastest Speed 50 | 50 56 52 52 Average Speed 78 | 110 75 52 52 Slowest Speed 180 | 120 180 52 52 Overloaded Moves . | . . . . Propulsion Burnouts . | . . . . Robots Hopped . | . . . . Potential Cave-ins . | . . . . Cave-ins Triggered . | . . . . Exploration Rate (%) 19 | 5 38 20 15 Regions Visited 3 Branch Regions 1 Pre-discovered Areas . | . . . . Known Exits Taken . | . . . . Unknown Exits Taken 3 | 1 1 1 . Scrap Searched . | . . . . Spaces Dug . | . . . . Terrain Destroyed 6 | . . . 6 Melee . | . . . . Projectile . | . . . . AOE 6 | . . . 6 Terrain Rammed . | . . . . Walls Destroyed . | . . . . Machines Disabled . | . . . . Actions | -11 -10 -9 -9 --------- Run | Yrd Mat Mat Min Total 791 | 187 393 149 62 Wait 107 | . 70 31 6 Move 617 | 159 300 113 45 Hop . | . . . . Pick Up 22 | 12 9 1 . Fast Attach . | . . . . Attach 14 | 7 4 2 1 Detach . | . . . . Swap 4 | 1 2 . 1 Drop 8 | . 8 . . Fire 19 | 8 . 2 9 Melee . | . . . . Ram . | . . . . Kick . | . . . . Crush . | . . . . Escape Stasis . | . . . . Rewire . | . . . . Trap . | . . . . Miscellaneous . | . . . . Route ------- -11/Scrapyard -10/Materials -9/Materials -9/Mines History --------- Turn | Location | Event 3 | -11/Scrapyard | Discovered new exit (range 15) 221 | -11/Scrapyard | Entered Materials 305 | -10/Materials | Build established: Mutant 536 | -10/Materials | Discovered new exit (range 5) 538 | -10/Materials | Entered another Materials area 538 | -9/Materials | Evolved 2 slots: Propulsion x1, Utility x1 594 | -9/Materials | Discovered new exit (range 14) 637 | -9/Materials | Entered Mines 650 | -9/Mines | Assembled infested the area 655 | -9/Mines | Learned Materials stockpile data 691 | -9/Mines | Core integrity fell below 50% 694 | -9/Mines | Self-destructed Last Messages --------------- 00677_ K-01 Serf cleans the Core Extractor. 00677_ K-01 Serf destroyed. 00677_ Core Extractor disabled. 00677_ as-32266 destroyed. 00678_ as-13830 shuts down. 00680_ Grenade Launcher destroyed. 00681_ Lgt. Ion Engine destroyed. 00681_ as-13830 destroyed. 00685_ Hover Unit destroyed. 00686_ Propulsion Shielding destroyed. 00686_ Hover Unit destroyed. 00686_ System corrupted by crushing effect (+1). 00687_ as-52293 destroyed. 00687_ Hvy. EM Pulse Gun destroyed. 00690_ Seismic Detector destroyed. 00692_ as-70022 destroyed. 00693_ Overheating: System interference. 00693_ Med. Laser temporarily disabled. 00694_ Med. Laser destroyed. [Achievement: Deductive Reasoning] Map ----- +----------------------------------------------------+ | ?????????????????????????????????????????????????? | | ?????????????????????????????????????????????????? | | ?????????????????????????????????????????????????? | | ?????????????????????????????????????????????????? | | ?????????????????????????????????????????????????? | | ?????????????????????????????????????????????????? | | ?????????????????????????????????????????????????? | | ?????????????????????????????????????????????????? | | ?????????????????????????????????????????????????? | | ?????????????????????????????????????????????????? | | ?????????????????????????????????????????????????? | | ?????????????????????????????????????????????????? | | ?????????????????????????????????????????????????? | | ?????????????????????????????????????????????????? | | ?????????????????????????????????????????????????? | | ?????????????????????????????????????????????????? | | ?????????????????????????????????????????????????? | | ?????????????????????????????????????????????????? | | ?????????????????????????????????????????????????? | | ?????????????????????????????????????????????????? | | ?????????????????????????????????????????????????? | | ?????????????????#???????????????????????????????? | | ?????????????????# ??????????????????????????????? | | ????????????????## ?????????????????????????????? | | ???????????# ??# #???#########????????????????? | | ???????????# #??#@a #????????????????? | | ???????????# ! ##a%% """ #????????????????? | | ????????????# a a "" #????????????????? | | ????????????????# ##a " #????????????????? | | ??????????????????????#/# % #????????????????? | | ??????????????????#####%## ###????????????????? | | ??????????????????# =*#?#####??????????????????? | | ?????????????###### ### #????????????????????????? | | ????###??????# #?# ???????????????????????? | | ???? #??????# ######?#####??????????????????????? | | ????# #??????# #?????????????????????????????????? | | ????# #?????## #?????????????????????????????????? | | ???## ####### ##????????????????????????????????? | | ???# ##???????????????????????????????? | | ???# ###### ###?????????????????????????????? | | #### ###??# ##????????????????????????????? | | #??## #????????????????????????????? | | #???## ##???????????????????????????? | | #????## #???????????????????????????? | | #?????#### #??????????????????????????? | | #?????????# ??????????????????????? | | """ #??????????# #######?????????????????????? | | """ #???????????###???????????????????????????? | | """ #?????????????????????????????????????????? | | ########?????????????????????????????????????????? | +----------------------------------------------------+ Best States ------------- Heat Dissipation 28 Energy Generation 10 Energy Capacity 125 Matter Stores 300 Matter Capacity 300 Sight Range 16 Terrain Scan Range 16 Terrain Scan Density 10 Propulsion Shielding 33 Weapon Shielding 33 Evasion (%) 55 Item Schematics ----------------- None Robot Schematics ------------------ None Fabricated ------------ Nothing Repaired ---------- Nothing Studied --------- None Alien Tech Used ----------------- None Achievements -------------- Deductive Reasoning Challenges ------------ None Game ------ Seed HeavyImprovedMeganuke Manual? 0 Play Time 00:14:14 Cumulative 2.7 hours Start 2026.04.20 @ 15:44:44 End 2026.04.20 @ 15:57:35 Sessions 1 Manual Loads 0 Difficulty Rogue Special Mode None Game No. 9 Rogue 9 Adventurer 0 Explorer 0 Win Type - Total 0 Types 0/0/0/0/0/0/0/0/0/0 Lore% 1 Gallery% 6 Achievement% 7 Wizard Run 0 Options --------- Layout 1 ASCII 0 Keyboard 0 Movement Mouse Keybinds 0 Fullscreen 1 Font 24/Smallcaps Map View 50x35 Zoom Use 0% Tactical HUD 1 Map Filters NONE Filters NONE Steam 1 RUN: c1e64c8a-2ca7-4aae-ac8c-21eff9bfd7c5